[Event "1st SOA-GM Festival 2024"]
[Site "Bhubaneswar"]
[Date "2024.02.01"]
[Round "2.20"]
[White "Neelash Saha"]
[Black "Nikhil Magizhnan"]
[Result "1-0"]
[WhiteElo "2446"]
[BlackElo "1994"]
[PlyCount "101"]
[EventDate "2024.02.01"]
[EventType "swiss"]
[EventCountry "IND"]
[TimeControl "5400+30"]

1. d4 {[%emt 0:00:19]} Nf6 {[%emt 0:00:08]} 2. c4 {[%emt 0:00:05]} g6 {[%emt 0:00:11]} 3. Nc3 {[%emt 0:00:05]} Bg7 {[%emt 0:00:56]} 4. e4 {[%emt 0:00:06]} d6 {[%emt 0:00:06]} 5. h3 {[%emt 0:00:04]} O-O {[%emt 0:00:19]} 6. Be3 {[%emt 0:00:04]} c5 {[%emt 0:02:09]} 7. d5 {[%emt 0:00:23]} e6 {[%emt 0:04:08]} 8. Bd3 {[%emt 0:00:06]} a6 {[%emt 0:01:24]} 9. Nf3 {[%emt 0:02:39]} Nbd7 {[%emt 0:05:34]} 10. a4 {[%emt 0:01:00]} e5 {[%emt 0:00:33]} 11. g4 {[%emt 0:02:38]} Rb8 {[%emt 0:02:37]} 12. Nd2 {[%emt 0:00:11]} Ne8 {[%emt 0:04:12]} 13. Nf1 {[%emt 0:00:21]} f6 {[%emt 0:00:05]} 14. h4 {[%emt 0:01:15]} Rf7 {[%emt 0:00:23]} 15. Qd2 {[%emt 0:01:27]} Nf8 {[%emt 0:00:12]} 16. f3 {[%emt 0:01:09]} f5 {[%emt 0:03:02]} 17. Bg5 {[%emt 0:01:02]} Qa5 {[%emt 0:03:12]} 18. gxf5 {[%emt 0:08:48]} gxf5 {[%emt 0:00:26]} 19. h5 {[%emt 0:02:37]} Bd7 {[%emt 0:10:33]} 20. Rg1 {[%emt 0:01:41]} fxe4 {[%emt 0:02:20]} 21. Bxe4 {[%emt 0:02:08]} Kh8 {[%emt 0:00:07]} 22. Qg2 {[%emt 0:01:29]} b5 {[%emt 0:18:31]} 23. h6 {[%emt 0:00:50]} Bf6 {[%emt 0:00:02]} 24. Bd2 {[%emt 0:00:05]} Bh4+ {[%emt 0:03:30]} 25. Kd1 {[%emt 0:00:05]} Nf6 {[%emt 0:00:05]} 26. Nxb5 {[%emt 0:00:10]} Qd8 {[%emt 0:00:49]} 27. Nxd6 {[%emt 0:00:59]} Bxa4+ {[%emt 0:00:06]} 28. Rxa4 {[%emt 0:00:03]} Qxd6 {[%emt 0:00:09]} 29. Bf5 {[%emt 0:00:26]} Ng6 {[%emt 0:03:50]} 30. Qh2 {[%emt 0:00:44]} Nxd5 {[%emt 0:00:54]} 31. Bxg6 {[%emt 0:00:20]} Nc3+ {[%emt 0:04:12]} 32. bxc3 {[%emt 0:00:07]} hxg6 {[%emt 0:00:05]} 33. Qxh4 {[%emt 0:10:10]} Qd3 {[%emt 0:00:24]} 34. Ra1 {[%emt 0:00:08]} Rxf3 {[%emt 0:01:16]} 35. Qe1 {[%emt 0:01:56]} e4 {[%emt 0:04:30]} 36. Rc1 {[%emt 0:02:11]} Qxc4 {[%emt 0:06:33]} 37. Qe2 {[%emt 0:00:39]} Qf7 {[%emt 0:03:00]} 38. Be3 {[%emt 0:03:09]} Rd8+ {[%emt 0:00:51]} 39. Ke1 {[%emt 0:01:23]} Rd3 {[%emt 0:07:33]} 40. Rd1 {[%emt 0:00:42]} Qd5 {[%emt 0:04:18]} 41. c4 {[%emt 0:00:43]} Rxd1+ {[%emt 0:03:53]} 42. Qxd1 {[%emt 0:00:05]} Qe5 {[%emt 0:01:11]} 43. Qd8+ {[%emt 0:00:07]} Kh7 {[%emt 0:00:08]} 44. Qd7+ {[%emt 0:00:02]} Kh8 {[%emt 0:00:17]} 45. Qg7+ {[%emt 0:00:03]} Qxg7 {[%emt 0:00:13]} 46. hxg7+ {[%emt 0:00:02]} Kxg7 {[%emt 0:00:12]} 47. Ke2 {[%emt 0:00:05]} Rh3 {[%emt 0:01:50]} 48. Rg5 {[%emt 0:00:14]} Rh8 {[%emt 0:01:03]} 49. Rxc5 {[%emt 0:00:08]} Rb8 {[%emt 0:00:15]} 50. Rc7+ {[%emt 0:00:06]} Kg8 {[%emt 0:00:10]} 51. Rc6 {[%emt 0:00:04]} 1-0

[Event "1st SOA-GM Festival 2024"]
[Site "Bhubaneswar"]
[Date "2024.02.01"]
[Round "3.1"]
[White "Soham Kamotra"]
[Black "Fawzy, Adham"]
[Result "1/2-1/2"]
[WhiteElo "2348"]
[BlackElo "2522"]
[PlyCount "86"]
[EventDate "2024.02.01"]
[EventType "swiss"]
[EventCountry "IND"]
[TimeControl "5400+30"]

1. Nf3 {[%emt 0:00:03]} Nf6 {[%emt 0:02:03]} 2. b3 {[%emt 0:00:47]} c5 {[%emt 0:06:01]} 3. e3 {[%emt 0:00:24]} d6 {[%emt 0:01:19]} 4. d4 {[%emt 0:00:58]} g6 {[%emt 0:03:10]} 5. Bb2 {[%emt 0:01:34]} Bg7 {[%emt 0:00:39]} 6. Be2 {[%emt 0:04:27]} O-O {[%emt 0:03:21]} 7. O-O {[%emt 0:00:53]} Nc6 {[%emt 0:02:33]} 8. c4 {[%emt 0:05:19]} Ne4 {[%emt 0:05:26]} 9. Bd3 {[%emt 0:03:48]} d5 {[%emt 0:05:06]} 10. cxd5 {[%emt 0:00:34]} Qxd5 {[%emt 0:00:12]} 11. Bxe4 {[%emt 0:12:07]} Qxe4 {[%emt 0:00:22]} 12. Nc3 {[%emt 0:00:06]} Qf5 {[%emt 0:02:14]} 13. e4 {[%emt 0:02:51]} Qh5 {[%emt 0:04:27]} 14. d5 {[%emt 0:01:04]} Rd8 {[%emt 0:06:55]} 15. Qe2 {[%emt 0:00:07]} Nb4 {[%emt 0:16:47]} 16. a3 {[%emt 0:03:01]} Na6 {[%emt 0:00:46]} 17. h3 {[%emt 0:05:25]} Bd7 {[%emt 0:00:29]} 18. e5 {[%emt 0:07:30]} Nc7 {[%emt 0:03:43]} 19. Rfd1 {[%emt 0:01:12]} e6 {[%emt 0:04:26]} 20. d6 {[%emt 0:09:26]} Nd5 {[%emt 0:00:30]} 21. Nxd5 {[%emt 0:03:27]} exd5 {[%emt 0:00:06]} 22. Rxd5 {[%emt 0:00:04]} Bc6 {[%emt 0:01:33]} 23. Rxc5 {[%emt 0:01:36]} Rxd6 {[%emt 0:02:19]} 24. exd6 {[%emt 0:04:12]} Qxc5 {[%emt 0:00:06]} 25. Bxg7 {[%emt 0:00:24]} Kxg7 {[%emt 0:00:34]} 26. Rd1 {[%emt 0:02:35]} Rd8 {[%emt 0:09:07]} 27. Qb2+ {[%emt 0:03:46]} f6 {[%emt 0:01:28]} 28. b4 {[%emt 0:03:46]} Qf5 {[%emt 0:01:56]} 29. Qe2 {[%emt 0:01:16]} Re8 {[%emt 0:01:22]} 30. Nd4 {[%emt 0:03:30]} Qd7 {[%emt 0:06:10]} 31. Qd2 {[%emt 0:01:45]} Bd5 {[%emt 0:01:26]} 32. Nc2 {[%emt 0:03:42]} Bb3 {[%emt 0:00:58]} 33. Qd3 {[%emt 0:01:31]} Ba4 {[%emt 0:04:42]} 34. Rd2 {[%emt 0:00:13]} Bc6 {[%emt 0:00:53]} 35. Ne3 {[%emt 0:00:11]} Re5 {[%emt 0:00:46]} 36. Qd4 {[%emt 0:00:17]} a6 {[%emt 0:01:27]} 37. Kh2 {[%emt 0:01:45]} h5 {[%emt 0:00:21]} 38. Nc4 {[%emt 0:03:54]} Rd5 {[%emt 0:01:53]} 39. Qxd5 {[%emt 0:05:26]} Bxd5 {[%emt 0:00:01]} 40. Rxd5 {[%emt 0:00:08]} Kf7 {[%emt 0:00:40]} 41. Nb6 {[%emt 0:00:04]} Qd8 {[%emt 0:00:21]} 42. d7 {[%emt 0:00:06]} Qc7+ {[%emt 0:00:59]} 43. g3 {[%emt 0:00:01]} Qxb6 {[%emt 0:00:40]} 1/2-1/2

[Event "1st SOA-GM Festival 2024"]
[Site "Bhubaneswar"]
[Date "2024.02.01"]
[Round "3.2"]
[White "Tahbaz, Arash"]
[Black "Laxman, R.R."]
[Result "1-0"]
[WhiteElo "2425"]
[BlackElo "2338"]
[PlyCount "48"]
[EventDate "2024.02.01"]
[EventType "swiss"]
[EventCountry "IND"]
[TimeControl "5400+30"]

1. d4 {[%emt 0:01:35]} Nf6 {[%emt 0:00:08]} 2. Nf3 {[%emt 0:00:05]} e6 {[%emt 0:00:06]} 3. Bf4 {[%emt 0:00:05]} b6 {[%emt 0:01:06]} 4. e3 {[%emt 0:00:08]} Bb7 {[%emt 0:00:06]} 5. h3 {[%emt 0:00:06]} g6 {[%emt 0:00:30]} 6. c4 {[%emt 0:00:56]} Bg7 {[%emt 0:00:06]} 7. Nc3 {[%emt 0:00:04]} O-O {[%emt 0:01:32]} 8. Bd3 {[%emt 0:00:04]} d6 {[%emt 0:04:55]} 9. O-O {[%emt 0:01:20]} Nc6 {[%emt 0:02:42]} 10. Rc1 {[%emt 0:18:39]} Re8 {[%emt 0:01:13]} 11. c5 {[%emt 0:10:43]} e5 {[%emt 0:06:31]} 12. dxe5 {[%emt 0:03:42]} dxe5 {[%emt 0:00:06]} 13. Bg5 {[%emt 0:00:10]} bxc5 {[%emt 0:06:12]} 14. Bxf6 {[%emt 0:21:27]} Bxf6 {[%emt 0:00:20]} 15. Be4 {[%emt 0:00:14]} Rb8 {[%emt 0:01:05]} 16. Qa4 {[%emt 0:04:36]} Re6 {[%emt 0:02:17]} 17. Rfd1 {[%emt 0:03:48]} Rd6 {[%emt 0:00:13]} 18. Rxd6 {[%emt 0:00:26]} Qxd6 {[%emt 0:00:02]} 19. Rd1 {[%emt 0:00:35]} Qe6 {[%emt 0:00:04]} 20. Bd5 {[%emt 0:00:34]} Qe8 {[%emt 0:00:20]} 21. Ne4 {[%emt 0:00:05]} Be7 {[%emt 0:00:22]} 22. Neg5 {[%emt 0:03:13]} Bxg5 {[%emt 0:00:07]} 23. Nxg5 {[%emt 0:00:05]} Qe7 {[%emt 0:00:16]} 24. Nxf7 {[%emt 0:07:35]} Kf8 {[%emt 0:00:07]} 1-0

[Event "1st SOA-GM Festival 2024"]
[Site "Bhubaneswar"]
[Date "2024.02.01"]
[Round "3.4"]
[White "Audi Ameya"]
[Black "Nilssen, Ellen Fredericia"]
[Result "1-0"]
[WhiteElo "2385"]
[BlackElo "2184"]
[PlyCount "75"]
[EventDate "2024.02.01"]
[EventType "swiss"]
[EventCountry "IND"]
[TimeControl "5400+30"]

1. e4 {[%emt 0:00:03]} c5 {[%emt 0:00:08]} 2. Nf3 {[%emt 0:00:04]} d6 {[%emt 0:00:08]} 3. d4 {[%emt 0:00:04]} cxd4 {[%emt 0:00:07]} 4. Nxd4 {[%emt 0:00:03]} Nf6 {[%emt 0:00:08]} 5. Nc3 {[%emt 0:00:03]} a6 {[%emt 0:00:09]} 6. Bd3 {[%emt 0:00:04]} e5 {[%emt 0:00:53]} 7. Nde2 {[%emt 0:00:06]} Be7 {[%emt 0:00:13]} 8. O-O {[%emt 0:00:08]} O-O {[%emt 0:02:52]} 9. Ng3 {[%emt 0:00:29]} Be6 {[%emt 0:00:07]} 10. Nd5 {[%emt 0:00:24]} Bxd5 {[%emt 0:00:08]} 11. exd5 {[%emt 0:00:04]} g6 {[%emt 0:00:08]} 12. c4 {[%emt 0:00:12]} Nbd7 {[%emt 0:00:21]} 13. Kh1 {[%emt 0:03:23]} Nc5 {[%emt 0:10:11]} 14. f4 {[%emt 0:00:28]} Nxd3 {[%emt 0:04:55]} 15. Qxd3 {[%emt 0:00:03]} Nd7 {[%emt 0:01:54]} 16. f5 {[%emt 0:02:23]} Nc5 {[%emt 1:16:08]} 17. Qf3 {[%emt 0:01:36]} Bf6 {[%emt 0:00:00]} 18. Bh6 {[%emt 0:02:31]} Bg7 {[%emt 0:00:00]} 19. Bxg7 {[%emt 0:00:07]} Kxg7 {[%emt 0:00:00]} 20. f6+ {[%emt 0:01:50]} Kh8 {[%emt 0:00:00]} 21. b4 {[%emt 0:00:05]} Na4 {[%emt 0:00:00]} 22. Ne4 {[%emt 0:00:16]} Rg8 {[%emt 0:00:00]} 23. Qe3 {[%emt 0:04:01]} Rc8 {[%emt 0:00:00]} 24. Qh6 {[%emt 0:01:16]} g5 {[%emt 0:00:00]} 25. Nxg5 {[%emt 0:00:27]} Rxg5 {[%emt 0:00:00]} 26. Qxg5 {[%emt 0:00:02]} Qg8 {[%emt 0:00:00]} 27. Qxg8+ {[%emt 0:02:40]} Kxg8 {[%emt 0:00:00]} 28. Rac1 {[%emt 0:00:15]} Kf8 {[%emt 0:00:00]} 29. g4 {[%emt 0:11:49]} Ke8 {[%emt 0:00:00]} 30. Rf5 {[%emt 0:05:46]} Nb2 {[%emt 0:00:00]} 31. Rh5 {[%emt 0:06:27]} Nd3 {[%emt 0:00:00]} 32. Rc3 {[%emt 0:01:31]} Nxb4 {[%emt 0:00:00]} 33. Rxh7 {[%emt 0:00:06]} Rc5 {[%emt 0:00:00]} 34. g5 {[%emt 0:03:00]} b5 {[%emt 0:00:00]} 35. Rh8+ {[%emt 0:01:35]} Kd7 {[%emt 0:00:00]} 36. g6 {[%emt 0:00:12]} Nxd5 {[%emt 0:00:00]} 37. cxd5 {[%emt 0:00:15]} Rxc3 {[%emt 0:00:00]} 38. gxf7 {[%emt 0:00:04]} 1-0

[Event "1st SOA-GM Festival 2024"]
[Site "Bhubaneswar"]
[Date "2024.02.01"]
[Round "3.5"]
[White "Aakash Sharadchandra, Dalvi"]
[Black "Nguyen Van Huy"]
[Result "1/2-1/2"]
[WhiteElo "2180"]
[BlackElo "2364"]
[PlyCount "146"]
[EventDate "2024.02.01"]
[EventType "swiss"]
[EventCountry "IND"]
[TimeControl "5400+30"]

1. d4 {[%emt 0:00:03]} Nf6 {[%emt 0:00:44]} 2. c4 {[%emt 0:00:06]} e6 {[%emt 0:00:39]} 3. Nf3 {[%emt 0:00:06]} d5 {[%emt 0:00:21]} 4. Nc3 {[%emt 0:00:06]} Bb4 {[%emt 0:00:31]} 5. cxd5 {[%emt 0:00:16]} exd5 {[%emt 0:00:42]} 6. Bg5 {[%emt 0:00:08]} h6 {[%emt 0:01:19]} 7. Bh4 {[%emt 0:00:15]} O-O {[%emt 0:01:30]} 8. e3 {[%emt 0:00:10]} Bf5 {[%emt 0:00:47]} 9. Be2 {[%emt 0:00:20]} Nbd7 {[%emt 0:01:06]} 10. Qb3 {[%emt 0:00:17]} Bxc3+ {[%emt 0:01:22]} 11. Qxc3 {[%emt 0:00:13]} c6 {[%emt 0:00:55]} 12. Nd2 {[%emt 0:00:27]} Ne4 {[%emt 0:01:28]} 13. Bxd8 {[%emt 0:00:14]} Nxc3 {[%emt 0:00:13]} 14. bxc3 {[%emt 0:00:05]} Rfxd8 {[%emt 0:00:43]} 15. a4 {[%emt 0:00:11]} Rac8 {[%emt 0:04:07]} 16. Nf1 {[%emt 0:01:31]} c5 {[%emt 0:04:02]} 17. Kd2 {[%emt 0:01:32]} Nf6 {[%emt 0:06:01]} 18. f3 {[%emt 0:01:50]} Ne8 {[%emt 0:05:32]} 19. g4 {[%emt 0:11:16]} Bg6 {[%emt 0:02:30]} 20. Ng3 {[%emt 0:00:22]} Nd6 {[%emt 0:03:37]} 21. h4 {[%emt 0:05:04]} Rc6 {[%emt 0:03:04]} 22. h5 {[%emt 0:04:10]} Bh7 {[%emt 0:01:43]} 23. a5 {[%emt 0:03:28]} Rdc8 {[%emt 0:03:50]} 24. Rhc1 {[%emt 0:08:25]} f5 {[%emt 0:03:26]} 25. Bd3 {[%emt 0:06:31]} fxg4 {[%emt 0:02:41]} 26. fxg4 {[%emt 0:00:24]} Re8 {[%emt 0:05:14]} 27. Re1 {[%emt 0:29:38]} Bxd3 {[%emt 0:06:57]} 28. Kxd3 {[%emt 0:00:02]} Ne4 {[%emt 0:01:09]} 29. Nxe4 {[%emt 0:00:34]} c4+ {[%emt 0:00:21]} 30. Kd2 {[%emt 0:06:33]} Rxe4 {[%emt 0:00:13]} 31. Rab1 {[%emt 0:00:17]} b6 {[%emt 0:11:49]} 32. Rb5 {[%emt 0:01:30]} Rd6 {[%emt 0:01:03]} 33. Rg1 {[%emt 0:01:37]} bxa5 {[%emt 0:14:14]} 34. Rxa5 {[%emt 0:00:38]} a6 {[%emt 0:01:36]} 35. Ke2 {[%emt 0:02:23]} g6 {[%emt 0:01:44]} 36. Kf3 {[%emt 0:04:23]} Rde6 {[%emt 0:00:42]} 37. Re1 {[%emt 0:00:58]} Rf6+ {[%emt 0:00:26]} 38. Kg3 {[%emt 0:01:10]} gxh5 {[%emt 0:00:11]} 39. gxh5 {[%emt 0:00:06]} Rf5 {[%emt 0:01:24]} 40. Rxa6 {[%emt 0:00:31]} Rxh5 {[%emt 0:00:10]} 41. Kf2 {[%emt 0:02:16]} Rf5+ {[%emt 0:04:21]} 42. Ke2 {[%emt 0:00:10]} Rg4 {[%emt 0:00:19]} 43. Rf1 {[%emt 0:01:25]} Rg2+ {[%emt 0:01:31]} 44. Ke1 {[%emt 0:00:02]} Rh5 {[%emt 0:00:34]} 45. Rf2 {[%emt 0:01:53]} Rh1+ {[%emt 0:00:39]} 46. Ke2 {[%emt 0:00:11]} Rg3 {[%emt 0:00:07]} 47. Rf1 {[%emt 0:03:41]} Rh2+ {[%emt 0:02:29]} 48. Rf2 {[%emt 0:00:05]} Rh1 {[%emt 0:00:18]} 49. Rf1 {[%emt 0:00:05]} Rxf1 {[%emt 0:01:31]} 50. Kxf1 {[%emt 0:00:04]} Rxe3 {[%emt 0:00:03]} 51. Rxh6 {[%emt 0:00:13]} Kf7 {[%emt 0:00:08]} 52. Rd6 {[%emt 0:00:27]} Rf3+ {[%emt 0:00:19]} 53. Ke2 {[%emt 0:00:04]} Rf5 {[%emt 0:00:03]} 54. Ke3 {[%emt 0:01:21]} Ke7 {[%emt 0:00:09]} 55. Rh6 {[%emt 0:01:30]} Kd7 {[%emt 0:00:12]} 56. Ke2 {[%emt 0:00:24]} Rf8 {[%emt 0:00:17]} 57. Ke3 {[%emt 0:01:12]} Re8+ {[%emt 0:00:08]} 58. Kf3 {[%emt 0:00:31]} Re1 {[%emt 0:00:11]} 59. Kf4 {[%emt 0:00:13]} Re4+ {[%emt 0:00:12]} 60. Kf3 {[%emt 0:00:16]} Re1 {[%emt 0:00:32]} 61. Kf4 {[%emt 0:00:06]} Re7 {[%emt 0:00:25]} 62. Kf3 {[%emt 0:01:47]} Rf7+ {[%emt 0:00:09]} 63. Ke2 {[%emt 0:00:19]} Rg7 {[%emt 0:00:22]} 64. Kf3 {[%emt 0:00:24]} Rf7+ {[%emt 0:00:23]} 65. Ke2 {[%emt 0:00:16]} Rf5 {[%emt 0:00:04]} 66. Ke3 {[%emt 0:00:59]} Rf1 {[%emt 0:00:09]} 67. Ke2 {[%emt 0:00:53]} Rc1 {[%emt 0:00:24]} 68. Kd2 {[%emt 0:00:11]} Rg1 {[%emt 0:00:10]} 69. Ke3 {[%emt 0:01:05]} Rg4 {[%emt 0:00:37]} 70. Kf3 {[%emt 0:00:12]} Re4 {[%emt 0:00:38]} 71. Kf2 {[%emt 0:00:14]} Kc7 {[%emt 0:00:49]} 72. Kf3 {[%emt 0:00:10]} Re1 {[%emt 0:00:14]} 73. Kf4 {[%emt 0:00:11]} Kd7 {[%emt 0:00:21]} 1/2-1/2

[Event "1st SOA-GM Festival 2024"]
[Site "Bhubaneswar"]
[Date "2024.02.01"]
[Round "3.6"]
[White "Vignesh Advaith Vemula"]
[Black "Manish Anto Cristiano F"]
[Result "1-0"]
[WhiteElo "2028"]
[BlackElo "2349"]
[PlyCount "99"]
[EventDate "2024.02.01"]
[EventType "swiss"]
[EventCountry "IND"]
[TimeControl "5400+30"]

1. e4 {[%emt 0:00:02]} c5 {[%emt 0:00:45]} 2. Nf3 {[%emt 0:00:06]} d6 {[%emt 0:00:07]} 3. d4 {[%emt 0:00:03]} cxd4 {[%emt 0:00:08]} 4. Nxd4 {[%emt 0:00:04]} Nf6 {[%emt 0:00:10]} 5. Nc3 {[%emt 0:00:04]} a6 {[%emt 0:00:15]} 6. Be3 {[%emt 0:00:17]} e5 {[%emt 0:00:27]} 7. Nb3 {[%emt 0:00:05]} Be7 {[%emt 0:00:39]} 8. f3 {[%emt 0:00:06]} Be6 {[%emt 0:00:07]} 9. Qd2 {[%emt 0:00:06]} h5 {[%emt 0:00:31]} 10. O-O-O {[%emt 0:00:08]} Nbd7 {[%emt 0:00:16]} 11. Kb1 {[%emt 0:00:07]} Rc8 {[%emt 0:00:17]} 12. Bd3 {[%emt 0:00:08]} b5 {[%emt 0:00:55]} 13. h3 {[%emt 0:00:09]} h4 {[%emt 0:02:38]} 14. f4 {[%emt 0:02:41]} Qc7 {[%emt 0:06:19]} 15. Rhe1 {[%emt 0:00:16]} O-O {[%emt 0:10:57]} 16. g4 {[%emt 0:00:11]} hxg3 {[%emt 0:03:53]} 17. Rg1 {[%emt 0:00:05]} b4 {[%emt 0:03:46]} 18. Ne2 {[%emt 0:00:21]} Nc5 {[%emt 0:07:45]} 19. Nxg3 {[%emt 0:00:42]} Rfd8 {[%emt 0:07:04]} 20. Qg2 {[%emt 0:06:42]} Nxd3 {[%emt 0:03:04]} 21. Nf5 {[%emt 0:13:07]} g6 {[%emt 0:02:49]} 22. Bb6 {[%emt 0:04:15]} Qxb6 {[%emt 0:09:08]} 23. Nxe7+ {[%emt 0:00:07]} Kf8 {[%emt 0:00:35]} 24. Nxc8 {[%emt 0:00:20]} Rxc8 {[%emt 0:00:21]} 25. cxd3 {[%emt 0:00:39]} exf4 {[%emt 0:00:08]} 26. Qf3 {[%emt 0:16:42]} Nh5 {[%emt 0:02:04]} 27. Rg5 {[%emt 0:02:18]} a5 {[%emt 0:07:19]} 28. d4 {[%emt 0:12:51]} a4 {[%emt 0:01:16]} 29. d5 {[%emt 0:00:06]} axb3 {[%emt 0:06:22]} 30. dxe6 {[%emt 0:00:06]} bxa2+ {[%emt 0:00:09]} 31. Ka1 {[%emt 0:01:51]} b3 {[%emt 0:06:14]} 32. Rxh5 {[%emt 0:00:41]} gxh5 {[%emt 0:01:26]} 33. Qxf4 {[%emt 0:00:07]} Rc7 {[%emt 0:06:52]} 34. Qh6+ {[%emt 0:00:41]} Ke8 {[%emt 0:05:46]} 35. Qh8+ {[%emt 0:01:59]} Ke7 {[%emt 0:00:02]} 36. exf7 {[%emt 0:00:05]} Kxf7 {[%emt 0:00:29]} 37. Rf1+ {[%emt 0:00:12]} Ke7 {[%emt 0:01:35]} 38. Qg7+ {[%emt 0:00:33]} Ke6 {[%emt 0:00:10]} 39. Rf6+ {[%emt 0:00:11]} Ke5 {[%emt 0:00:08]} 40. Rf7+ {[%emt 0:00:10]} Kxe4 {[%emt 0:00:44]} 41. Rxc7 {[%emt 0:00:07]} Qf2 {[%emt 0:00:39]} 42. Qe7+ {[%emt 0:00:22]} Kd5 {[%emt 0:00:24]} 43. Rc1 {[%emt 0:00:32]} Qg3 {[%emt 0:00:39]} 44. Qe2 {[%emt 0:00:20]} Qxh3 {[%emt 0:00:39]} 45. Rd1+ {[%emt 0:00:05]} Kc5 {[%emt 0:00:11]} 46. Qd2 {[%emt 0:00:38]} Qg3 {[%emt 0:00:48]} 47. Qd5+ {[%emt 0:00:04]} Kb6 {[%emt 0:00:20]} 48. Rc1 {[%emt 0:00:25]} h4 {[%emt 0:00:26]} 49. Rc6+ {[%emt 0:00:06]} Ka7 {[%emt 0:00:07]} 50. Qa5+ {[%emt 0:00:04]} 1-0

[Event "1st SOA-GM Festival 2024"]
[Site "Bhubaneswar"]
[Date "2024.02.01"]
[Round "3.7"]
[White "Ghosh, Diptayan"]
[Black "Nithin Babu"]
[Result "1-0"]
[WhiteElo "2568"]
[BlackElo "2177"]
[PlyCount "143"]
[EventDate "2024.02.01"]
[EventType "swiss"]
[EventCountry "IND"]
[TimeControl "5400+30"]

1. Nf3 {[%emt 0:00:42]} Nf6 {[%emt 0:00:07]} 2. g3 {[%emt 0:00:05]} g6 {[%emt 0:00:05]} 3. Bg2 {[%emt 0:00:05]} Bg7 {[%emt 0:00:06]} 4. d4 {[%emt 0:00:05]} c5 {[%emt 0:00:37]} 5. O-O {[%emt 0:03:34]} cxd4 {[%emt 0:00:10]} 6. Nxd4 {[%emt 0:00:04]} h5 {[%emt 0:02:11]} 7. e4 {[%emt 0:09:31]} Nc6 {[%emt 0:03:03]} 8. Nc3 {[%emt 0:02:49]} Ng4 {[%emt 0:04:47]} 9. Nb3 {[%emt 0:07:45]} d6 {[%emt 0:02:15]} 10. h3 {[%emt 0:02:28]} Bxc3 {[%emt 0:05:11]} 11. bxc3 {[%emt 0:00:16]} Nge5 {[%emt 0:00:24]} 12. Nd4 {[%emt 0:01:33]} Qa5 {[%emt 0:03:51]} 13. Bd2 {[%emt 0:06:23]} Nc4 {[%emt 0:09:48]} 14. Be1 {[%emt 0:03:29]} e5 {[%emt 0:04:23]} 15. Nb3 {[%emt 0:14:03]} Qc7 {[%emt 0:07:56]} 16. Qe2 {[%emt 0:06:10]} Ne7 {[%emt 0:03:21]} 17. f4 {[%emt 0:02:45]} Be6 {[%emt 0:03:47]} 18. a4 {[%emt 0:04:55]} Rc8 {[%emt 0:03:02]} 19. a5 {[%emt 0:02:19]} a6 {[%emt 0:02:57]} 20. Kh2 {[%emt 0:04:17]} f6 {[%emt 0:12:45]} 21. fxe5 {[%emt 0:01:57]} fxe5 {[%emt 0:00:18]} 22. Rf6 {[%emt 0:00:52]} Bf7 {[%emt 0:00:52]} 23. Qf2 {[%emt 0:09:43]} O-O {[%emt 0:01:50]} 24. Rd1 {[%emt 0:04:59]} Kg7 {[%emt 0:01:32]} 25. Rd3 {[%emt 0:02:08]} Ng8 {[%emt 0:04:12]} 26. Rff3 {[%emt 0:00:07]} Be6 {[%emt 0:01:00]} 27. Rxf8 {[%emt 0:03:35]} Rxf8 {[%emt 0:00:02]} 28. Qe2 {[%emt 0:00:08]} Ne7 {[%emt 0:03:58]} 29. Bd2 {[%emt 0:01:26]} Nc6 {[%emt 0:06:40]} 30. Bc1 {[%emt 0:00:38]} N6xa5 {[%emt 0:01:20]} 31. Nd2 {[%emt 0:00:13]} Qb6 {[%emt 0:03:39]} 32. Nf3 {[%emt 0:00:15]} Nc6 {[%emt 0:00:33]} 33. Ng5 {[%emt 0:02:14]} Bg8 {[%emt 0:00:23]} 34. Rd5 {[%emt 0:03:19]} N6a5 {[%emt 0:00:27]} 35. Bf3 {[%emt 0:00:38]} Qa7 {[%emt 0:02:29]} 36. Rd1 {[%emt 0:00:52]} Nc6 {[%emt 0:02:10]} 37. g4 {[%emt 0:00:55]} hxg4 {[%emt 0:00:39]} 38. hxg4 {[%emt 0:00:02]} b5 {[%emt 0:00:48]} 39. Kg3 {[%emt 0:00:17]} Qe7 {[%emt 0:02:32]} 40. Qh2 {[%emt 0:00:50]} Rf4 {[%emt 0:00:39]} 41. Nh3 {[%emt 0:01:54]} g5 {[%emt 0:01:02]} 42. Nxf4 {[%emt 0:00:10]} exf4+ {[%emt 0:02:03]} 43. Kg2 {[%emt 0:00:19]} N6e5 {[%emt 0:00:29]} 44. Rh1 {[%emt 0:00:42]} Kf8 {[%emt 0:01:10]} 45. Be2 {[%emt 0:00:25]} Qg7 {[%emt 0:00:36]} 46. Qg1 {[%emt 0:00:52]} Qf7 {[%emt 0:01:21]} 47. Rh3 {[%emt 0:00:16]} Bh7 {[%emt 0:00:00]} 48. Qd4 {[%emt 0:00:04]} Kg8 {[%emt 0:00:00]} 49. Kf2 {[%emt 0:01:08]} Bg6 {[%emt 0:00:45]} 50. Bxc4 {[%emt 0:00:30]} bxc4 {[%emt 0:00:27]} 51. Qxd6 {[%emt 0:00:31]} Nxg4+ {[%emt 0:00:12]} 52. Ke1 {[%emt 0:00:12]} Nf6 {[%emt 0:00:56]} 53. e5 {[%emt 0:00:49]} Ne4 {[%emt 0:00:27]} 54. Qd8+ {[%emt 0:00:11]} Qe8 {[%emt 0:00:06]} 55. Qd5+ {[%emt 0:00:06]} Kg7 {[%emt 0:00:29]} 56. e6 {[%emt 0:00:07]} Nf6 {[%emt 0:00:58]} 57. Qe5 {[%emt 0:00:42]} Qe7 {[%emt 0:00:26]} 58. Rh2 {[%emt 0:00:23]} Kg8 {[%emt 0:00:34]} 59. Qxg5 {[%emt 0:00:22]} Qxe6+ {[%emt 0:00:20]} 60. Re2 {[%emt 0:00:05]} Ne4 {[%emt 0:00:29]} 61. Qd8+ {[%emt 0:00:37]} Kf7 {[%emt 0:00:16]} 62. Bxf4 {[%emt 0:00:30]} Qh3 {[%emt 0:01:35]} 63. Qd5+ {[%emt 0:00:08]} Kg7 {[%emt 0:00:00]} 64. Be5+ {[%emt 0:00:28]} Kf8 {[%emt 0:00:00]} 65. Bd6+ {[%emt 0:00:25]} Kg7 {[%emt 0:00:19]} 66. Qd4+ {[%emt 0:01:01]} Kg8 {[%emt 0:00:54]} 67. Qxc4+ {[%emt 0:00:34]} Kg7 {[%emt 0:00:22]} 68. Qc7+ {[%emt 0:01:15]} Bf7 {[%emt 0:00:42]} 69. Be5+ {[%emt 0:00:11]} Nf6 {[%emt 0:00:41]} 70. Bxf6+ {[%emt 0:00:27]} Kxf6 {[%emt 0:00:16]} 71. Rf2+ {[%emt 0:00:16]} Kg5 {[%emt 0:00:02]} 72. Qf4+ {[%emt 0:00:05]} 1-0